[Event "*** Titled Tuesday Blitz"]
[Site "Chess.com"]
[Date "2021.02.09"]
[Round "5"]
[White "EvilMorty23"]
[Black "OlifantCZ"]
[Result "0-1"]
[WhiteElo "2445"]
[BlackElo "2268"]
[TimeControl "180+1"]
[EndTime "10:57:26 PST"]
[Termination "OlifantCZ won by resignation"]

1. e4 {[%clk 0:03:00.9]} 1... e6 {[%clk 0:02:59.7]} 2. d4 {[%clk 0:03:00.3]}
2... d5 {[%clk 0:03:00.3]} 3. Nd2 {[%clk 0:03:00.5]} 3... c5 {[%clk 0:02:58.8]}
4. Ngf3 {[%clk 0:03:00.1]} 4... cxd4 {[%clk 0:02:56.4]} 5. exd5 {[%clk 0:03:00]}
5... Qxd5 {[%clk 0:02:55.8]} 6. Bc4 {[%clk 0:02:59.8]} 6... Qd6 {[%clk
0:02:56.2]} 7. O-O {[%clk 0:03:00.7]} 7... Nf6 {[%clk 0:02:56.7]} 8. Nb3 {[%clk
0:03:00.5]} 8... Nc6 {[%clk 0:02:57.3]} 9. Nbxd4 {[%clk 0:03:00.6]} 9... Nxd4
{[%clk 0:02:58]} 10. Nxd4 {[%clk 0:03:00.7]} 10... a6 {[%clk 0:02:58.5]} 11. Bb3
{[%clk 0:02:59.3]} 11... Bd7 {[%clk 0:02:57.4]} 12. g3 {[%clk 0:02:59]} 12...
Qc7 {[%clk 0:02:53.5]} 13. Re1 {[%clk 0:02:57.2]} 13... Be7 {[%clk 0:02:35.7]}
14. Bf4 {[%clk 0:02:55.8]} 14... Qb6 {[%clk 0:02:35.2]} 15. c3 {[%clk
0:02:54.6]} 15... O-O {[%clk 0:02:34.1]} 16. Be5 {[%clk 0:02:52.5]} 16... Rad8
{[%clk 0:02:27.2]} 17. Qf3 {[%clk 0:02:49.8]} 17... Bc8 {[%clk 0:02:16]} 18.
Rad1 {[%clk 0:02:47.3]} 18... Nd7 {[%clk 0:02:14.9]} 19. Bf4 {[%clk 0:02:16.9]}
19... Nc5 {[%clk 0:02:04.8]} 20. Bc2 {[%clk 0:02:16]} 20... Bf6 {[%clk
0:02:03.4]} 21. Be5 {[%clk 0:02:06.4]} 21... Nd7 {[%clk 0:02:00.2]} 22. Qe4
{[%clk 0:01:40.1]} 22... g6 {[%clk 0:01:58]} 23. f4 {[%clk 0:01:22.1]} 23...
Nxe5 {[%clk 0:01:45]} 24. fxe5 {[%clk 0:01:23]} 24... Bg7 {[%clk 0:01:44.4]} 25.
b3 {[%clk 0:01:18.7]} 25... Bd7 {[%clk 0:01:40.6]} 26. Kf1 {[%clk 0:01:11.5]}
26... Bc6 {[%clk 0:01:36.4]} 27. Nxc6 {[%clk 0:01:11.3]} 27... bxc6 {[%clk
0:01:36.6]} 28. Rd4 {[%clk 0:01:07.8]} 28... Qc5 {[%clk 0:01:34.6]} 29. Red1
{[%clk 0:01:05]} 29... Rxd4 {[%clk 0:01:26.1]} 30. cxd4 {[%clk 0:01:05.9]} 30...
Qc3 {[%clk 0:01:26]} 31. Qd3 {[%clk 0:00:59.7]} 31... Qa5 {[%clk 0:01:17.2]} 32.
a4 {[%clk 0:00:55.3]} 32... Rd8 {[%clk 0:01:17.2]} 33. Qc4 {[%clk 0:00:54.6]}
33... Qb6 {[%clk 0:01:11.3]} 34. Ke2 {[%clk 0:00:51.6]} 34... a5 {[%clk
0:01:10.8]} 35. Be4 {[%clk 0:00:51.2]} 35... Rc8 {[%clk 0:00:49.9]} 36. Rc1
{[%clk 0:00:49.3]} 36... Rb8 {[%clk 0:00:45.9]} 37. Rc3 {[%clk 0:00:47.8]} 37...
Bf8 {[%clk 0:00:41.7]} 38. Qxc6 {[%clk 0:00:46.6]} 38... Qxd4 {[%clk 0:00:41.3]}
39. Qc7 {[%clk 0:00:37.4]} 39... Qxe4+ {[%clk 0:00:39.5]} 40. Re3 {[%clk
0:00:36.3]} 40... Qb7 {[%clk 0:00:39.5]} 41. Qc4 {[%clk 0:00:34]} 41... Qg2+
{[%clk 0:00:37.4]} 42. Ke1 {[%clk 0:00:32.6]} 42... Bb4+ {[%clk 0:00:36.6]} 43.
Kd1 {[%clk 0:00:29.1]} 43... Rd8+ {[%clk 0:00:36.2]} 44. Rd3 {[%clk 0:00:26.8]}
44... Qf1+ {[%clk 0:00:32.5]} 45. Kc2 {[%clk 0:00:26.2]} 45... Qe2+ {[%clk
0:00:32.2]} 46. Kc1 {[%clk 0:00:24.9]} 46... Rxd3 {[%clk 0:00:30.2]} 47. Qc2
{[%clk 0:00:21.1]} 47... Rc3 {[%clk 0:00:26.5]} 48. Qxc3 {[%clk 0:00:19.4]}
48... Bxc3 {[%clk 0:00:26.4]} 0-1

[Event "*** Titled Tuesday Blitz"]
[Site "Chess.com"]
[Date "2021.02.09"]
[Round "5"]
[White "Ze-Pequeno"]
[Black "MFguimaraes"]
[Result "0-1"]
[WhiteElo "2230"]
[BlackElo "2418"]
[TimeControl "180+1"]
[EndTime "10:57:26 PST"]
[Termination "MFguimaraes won on time"]

1. e4 {[%clk 0:02:58.8]} 1... e5 {[%clk 0:03:00.3]} 2. Nf3 {[%clk 0:02:58]} 2...
Nc6 {[%clk 0:03:00.8]} 3. Nc3 {[%clk 0:02:58.1]} 3... Nf6 {[%clk 0:03:00.1]} 4.
d4 {[%clk 0:02:58.2]} 4... exd4 {[%clk 0:03:01]} 5. Nxd4 {[%clk 0:02:58.7]} 5...
Bb4 {[%clk 0:02:59.2]} 6. Nxc6 {[%clk 0:02:58.7]} 6... bxc6 {[%clk 0:02:59.7]}
7. Bd3 {[%clk 0:02:59.2]} 7... O-O {[%clk 0:02:59.7]} 8. O-O {[%clk 0:02:58.7]}
8... Re8 {[%clk 0:02:57.8]} 9. Bg5 {[%clk 0:02:57.6]} 9... h6 {[%clk 0:02:57.3]}
10. Bh4 {[%clk 0:02:57.6]} 10... g5 {[%clk 0:02:57.6]} 11. Bg3 {[%clk
0:02:57.4]} 11... Bxc3 {[%clk 0:02:58.2]} 12. bxc3 {[%clk 0:02:57.9]} 12... Nxe4
{[%clk 0:02:59.1]} 13. Qh5 {[%clk 0:02:49.3]} 13... d6 {[%clk 0:02:26.2]} 14.
Qxh6 {[%clk 0:01:56.6]} 14... Bf5 {[%clk 0:02:24.7]} 15. Rae1 {[%clk 0:01:46.1]}
15... Re6 {[%clk 0:02:11.4]} 16. Qh5 {[%clk 0:01:39.4]} 16... Bg6 {[%clk
0:02:09.7]} 17. Qd1 {[%clk 0:01:16.1]} 17... Nxc3 {[%clk 0:02:06.8]} 18. Qd2
{[%clk 0:01:16.2]} 18... Ne4 {[%clk 0:02:05.3]} 19. Bxe4 {[%clk 0:01:03]} 19...
Rxe4 {[%clk 0:02:05]} 20. Rxe4 {[%clk 0:01:00.4]} 20... Bxe4 {[%clk 0:02:05.9]}
21. Re1 {[%clk 0:01:01]} 21... Bg6 {[%clk 0:02:02.4]} 22. Qc3 {[%clk 0:00:57]}
22... c5 {[%clk 0:01:58.7]} 23. h3 {[%clk 0:00:33.6]} 23... Qd7 {[%clk
0:01:58.7]} 24. Qf6 {[%clk 0:00:30.9]} 24... Qf5 {[%clk 0:01:58.8]} 25. Qe7
{[%clk 0:00:26.3]} 25... Rc8 {[%clk 0:01:51]} 26. c3 {[%clk 0:00:25.2]} 26...
Qd5 {[%clk 0:01:42.4]} 27. a4 {[%clk 0:00:22.6]} 27... Qd2 {[%clk 0:01:39.1]}
28. Re3 {[%clk 0:00:19.3]} 28... Qd5 {[%clk 0:01:34.6]} 29. Kh2 {[%clk
0:00:19.6]} 29... Kg7 {[%clk 0:01:33.1]} 30. Qd7 {[%clk 0:00:16.6]} 30... Bf5
{[%clk 0:01:28.5]} 31. Qe7 {[%clk 0:00:16.2]} 31... Be6 {[%clk 0:01:26]} 32. c4
{[%clk 0:00:12.4]} 32... Qf5 {[%clk 0:01:24.5]} 33. Rf3 {[%clk 0:00:12.2]} 33...
Qg6 {[%clk 0:01:24.8]} 34. Rc3 {[%clk 0:00:10.9]} 34... Rh8 {[%clk 0:01:22.9]}
35. Qxc7 {[%clk 0:00:09.4]} 35... Bf5 {[%clk 0:01:11.8]} 36. Bxd6 {[%clk
0:00:07.9]} 36... Re8 {[%clk 0:01:05.3]} 37. Qxc5 {[%clk 0:00:07.2]} 37... Qe6
{[%clk 0:01:00.7]} 38. Rg3 {[%clk 0:00:06.2]} 38... f6 {[%clk 0:00:59.7]} 39.
Qd4 {[%clk 0:00:05.4]} 39... Kg6 {[%clk 0:00:52.9]} 40. c5 {[%clk 0:00:04.5]}
40... Rd8 {[%clk 0:00:52.8]} 41. Rf3 {[%clk 0:00:04]} 41... Qe4 {[%clk
0:00:50.4]} 42. Qxe4 {[%clk 0:00:03.1]} 42... Bxe4 {[%clk 0:00:51.3]} 43. Re3
{[%clk 0:00:03.3]} 43... f5 {[%clk 0:00:51.5]} 44. f3 {[%clk 0:00:03.3]} 44...
Bd5 {[%clk 0:00:51.7]} 45. Re5 {[%clk 0:00:03.5]} 45... Bc6 {[%clk 0:00:50.4]}
46. a5 {[%clk 0:00:03.8]} 46... a6 {[%clk 0:00:49.4]} 47. Kg1 {[%clk 0:00:03]}
47... Bb5 {[%clk 0:00:48.1]} 48. Kf2 {[%clk 0:00:02.9]} 48... f4 {[%clk
0:00:48.1]} 49. Re6+ {[%clk 0:00:01.4]} 49... Kf7 {[%clk 0:00:48.3]} 50. Re7+
{[%clk 0:00:01.4]} 50... Kf6 {[%clk 0:00:48.8]} 0-1

[Event "*** Titled Tuesday Blitz"]
[Site "Chess.com"]
[Date "2021.02.09"]
[Round "5"]
[White "GMJustin"]
[Black "Synctel"]
[Result "0-1"]
[WhiteElo "2275"]
[BlackElo "2026"]
[TimeControl "180+1"]
[EndTime "10:57:26 PST"]
[Termination "Synctel won on time"]

1. d4 {[%clk 0:02:57.7]} 1... Nf6 {[%clk 0:02:58.8]} 2. Nc3 {[%clk 0:02:57.1]}
2... e6 {[%clk 0:02:59.3]} 3. Bg5 {[%clk 0:02:46.2]} 3... d5 {[%clk 0:02:54.8]}
4. e4 {[%clk 0:02:35.2]} 4... Bb4 {[%clk 0:02:53.4]} 5. e5 {[%clk 0:02:32.4]}
5... h6 {[%clk 0:02:53.8]} 6. Bd2 {[%clk 0:02:26.7]} 6... Bxc3 {[%clk
0:02:53.5]} 7. Bxc3 {[%clk 0:02:26.6]} 7... Ne4 {[%clk 0:02:53.3]} 8. Bb4 {[%clk
0:02:26.4]} 8... c5 {[%clk 0:02:27.6]} 9. Bxc5 {[%clk 0:02:21.6]} 9... Nxc5
{[%clk 0:02:25.5]} 10. dxc5 {[%clk 0:02:21.8]} 10... Nd7 {[%clk 0:02:00.7]} 11.
Qd4 {[%clk 0:02:06.4]} 11... Qc7 {[%clk 0:01:58.6]} 12. Nf3 {[%clk 0:01:33.1]}
12... Nxc5 {[%clk 0:01:41.9]} 13. Bd3 {[%clk 0:01:27.3]} 13... O-O {[%clk
0:01:33.8]} 14. O-O-O {[%clk 0:01:16.7]} 14... b6 {[%clk 0:01:22.9]} 15. Kb1
{[%clk 0:01:12.3]} 15... Nxd3 {[%clk 0:01:05.9]} 16. cxd3 {[%clk 0:00:59.2]}
16... Ba6 {[%clk 0:00:57.3]} 17. Rc1 {[%clk 0:00:57.4]} 17... Qe7 {[%clk
0:00:47.7]} 18. Rc3 {[%clk 0:00:52.5]} 18... Rfc8 {[%clk 0:00:40.8]} 19. Rhc1
{[%clk 0:00:51.8]} 19... Rxc3 {[%clk 0:00:37.7]} 20. Rxc3 {[%clk 0:00:52.7]}
20... Rc8 {[%clk 0:00:36.7]} 21. h4 {[%clk 0:00:35.1]} 21... Rc5 {[%clk
0:00:36.5]} 22. b4 {[%clk 0:00:25.2]} 22... Rc7 {[%clk 0:00:29.3]} 23. a4 {[%clk
0:00:17.3]} 23... Qd7 {[%clk 0:00:20]} 24. b5 {[%clk 0:00:13.1]} 24... Bb7
{[%clk 0:00:17]} 25. Kb2 {[%clk 0:00:11.6]} 25... Qc8 {[%clk 0:00:17.3]} 26.
Rxc7 {[%clk 0:00:06.8]} 26... Qxc7 {[%clk 0:00:18.2]} 27. Qc3 {[%clk 0:00:06.9]}
27... Qxc3+ {[%clk 0:00:15.5]} 28. Kxc3 {[%clk 0:00:06.5]} 28... Kf8 {[%clk
0:00:13.3]} 29. Nd4 {[%clk 0:00:05.9]} 29... a5 {[%clk 0:00:06.7]} 30. g4 {[%clk
0:00:03.6]} 30... Ke7 {[%clk 0:00:06.5]} 31. f4 {[%clk 0:00:02.9]} 31... f6
{[%clk 0:00:06]} 32. Nf3 {[%clk 0:00:00.7]} 32... Bc8 {[%clk 0:00:02.4]} 0-1

[Event "*** Titled Tuesday Blitz"]
[Site "Chess.com"]
[Date "2021.02.09"]
[Round "5"]
[White "ElCoachRene"]
[Black "niki_2003"]
[Result "1-0"]
[WhiteElo "2194"]
[BlackElo "2048"]
[TimeControl "180+1"]
[EndTime "10:57:26 PST"]
[Termination "ElCoachRene won on time"]

1. d4 {[%clk 0:03:00.9]} 1... Nf6 {[%clk 0:02:58.9]} 2. Bf4 {[%clk 0:03:01.4]}
2... e6 {[%clk 0:02:56.5]} 3. e3 {[%clk 0:03:01.9]} 3... b6 {[%clk 0:02:55.5]}
4. Nd2 {[%clk 0:03:02.2]} 4... Bb7 {[%clk 0:02:55.8]} 5. Ngf3 {[%clk 0:03:02.5]}
5... d6 {[%clk 0:02:55.1]} 6. Bd3 {[%clk 0:03:02.5]} 6... Nbd7 {[%clk
0:02:55.5]} 7. e4 {[%clk 0:03:02.4]} 7... c5 {[%clk 0:02:55.4]} 8. c3 {[%clk
0:03:01.8]} 8... Be7 {[%clk 0:02:54]} 9. Qe2 {[%clk 0:03:01.2]} 9... O-O {[%clk
0:02:53.1]} 10. h3 {[%clk 0:02:59.7]} 10... d5 {[%clk 0:02:43.8]} 11. e5 {[%clk
0:02:59.4]} 11... Nh5 {[%clk 0:02:40.7]} 12. Bh2 {[%clk 0:02:58.8]} 12... g6
{[%clk 0:02:40.9]} 13. g4 {[%clk 0:02:54.5]} 13... Ng7 {[%clk 0:02:39.9]} 14.
Bg3 {[%clk 0:02:48.8]} 14... f5 {[%clk 0:02:20.6]} 15. exf6 {[%clk 0:02:47.5]}
15... Nxf6 {[%clk 0:02:17.5]} 16. Ng5 {[%clk 0:02:44.6]} 16... Qd7 {[%clk
0:01:56.2]} 17. Be5 {[%clk 0:02:40.2]} 17... a6 {[%clk 0:01:35.2]} 18. f4 {[%clk
0:02:39.6]} 18... b5 {[%clk 0:01:33.3]} 19. O-O {[%clk 0:02:36]} 19... c4 {[%clk
0:01:22.5]} 20. Bc2 {[%clk 0:02:34.7]} 20... b4 {[%clk 0:01:22.9]} 21. Rab1
{[%clk 0:02:30]} 21... a5 {[%clk 0:01:19.1]} 22. Ndf3 {[%clk 0:02:17]} 22... a4
{[%clk 0:01:11.2]} 23. Nh2 {[%clk 0:02:12]} 23... b3 {[%clk 0:01:09.3]} 24. axb3
{[%clk 0:02:11.1]} 24... cxb3 {[%clk 0:01:08]} 25. Bd3 {[%clk 0:02:10.7]} 25...
Qc6 {[%clk 0:01:06.5]} 26. Rfe1 {[%clk 0:02:05.7]} 26... Ba6 {[%clk 0:01:01]}
27. Bxa6 {[%clk 0:02:02.1]} 27... Qxa6 {[%clk 0:01:00.8]} 28. Ra1 {[%clk
0:01:53]} 28... h6 {[%clk 0:00:55.5]} 29. Ngf3 {[%clk 0:01:50.9]} 29... Ne4
{[%clk 0:00:53.8]} 30. Nd2 {[%clk 0:01:46.4]} 30... Bh4 {[%clk 0:00:49.7]} 31.
Qxa6 {[%clk 0:01:38.8]} 31... Rxa6 {[%clk 0:00:49]} 32. Red1 {[%clk 0:01:35.7]}
32... Bf2+ {[%clk 0:00:29.8]} 33. Kg2 {[%clk 0:01:32.1]} 33... Nxd2 {[%clk
0:00:27.7]} 34. Rxd2 {[%clk 0:01:31.8]} 34... Be3 {[%clk 0:00:28.1]} 35. Re2
{[%clk 0:01:23.6]} 35... Bxf4 {[%clk 0:00:28.5]} 36. Bxg7 {[%clk 0:01:14.2]}
36... Kxg7 {[%clk 0:00:26.4]} 37. Nf3 {[%clk 0:01:13.7]} 37... g5 {[%clk
0:00:21.3]} 38. Rae1 {[%clk 0:01:08.5]} 38... Kf6 {[%clk 0:00:20.5]} 39. Ra1
{[%clk 0:01:04.9]} 39... Rfa8 {[%clk 0:00:20.9]} 40. Ne1 {[%clk 0:01:03.5]}
40... a3 {[%clk 0:00:20.6]} 41. bxa3 {[%clk 0:01:02.5]} 41... Rxa3 {[%clk
0:00:20.9]} 42. Rb1 {[%clk 0:01:00.5]} 42... Ke7 {[%clk 0:00:17.2]} 43. Nd3
{[%clk 0:00:59.6]} 43... Bd6 {[%clk 0:00:17.1]} 44. Reb2 {[%clk 0:00:56.1]}
44... Rb8 {[%clk 0:00:16]} 45. Nc1 {[%clk 0:00:53.2]} 45... Bf4 {[%clk
0:00:09.8]} 46. Rxb3 {[%clk 0:00:47.6]} 46... Rbxb3 {[%clk 0:00:06.3]} 47. Nxb3
{[%clk 0:00:46.5]} 47... Kd6 {[%clk 0:00:04.8]} 48. Kf3 {[%clk 0:00:38]} 1-0

[Event "*** Titled Tuesday Blitz"]
[Site "Chess.com"]
[Date "2021.02.09"]
[Round "5"]
[White "GigaQuparadze"]
[Black "Alexander_Moskalenko"]
[Result "1-0"]
[WhiteElo "2922"]
[BlackElo "2786"]
[TimeControl "180+1"]
[EndTime "10:57:29 PST"]
[Termination "GigaQuparadze won by resignation"]

1. e4 {[%clk 0:03:00.9]} 1... c6 {[%clk 0:03:00.2]} 2. d4 {[%clk 0:03:00.2]}
2... d5 {[%clk 0:03:01.1]} 3. Nc3 {[%clk 0:03:00.4]} 3... dxe4 {[%clk
0:03:01.5]} 4. Nxe4 {[%clk 0:03:01.3]} 4... Nd7 {[%clk 0:03:01.2]} 5. Ng5 {[%clk
0:02:58.7]} 5... Ngf6 {[%clk 0:03:00.8]} 6. Bd3 {[%clk 0:02:57.8]} 6... e6
{[%clk 0:03:00.4]} 7. N1f3 {[%clk 0:02:50.9]} 7... Bd6 {[%clk 0:03:00]} 8. Qe2
{[%clk 0:02:50.7]} 8... h6 {[%clk 0:02:59.4]} 9. Ne4 {[%clk 0:02:50.4]} 9...
Nxe4 {[%clk 0:03:00]} 10. Bxe4 {[%clk 0:02:50.6]} 10... Qc7 {[%clk 0:03:00.9]}
11. Bd2 {[%clk 0:02:48.8]} 11... Nf6 {[%clk 0:02:51]} 12. Bd3 {[%clk 0:02:48.6]}
12... c5 {[%clk 0:02:18.8]} 13. dxc5 {[%clk 0:02:45.5]} 13... Qxc5 {[%clk
0:02:19.4]} 14. O-O-O {[%clk 0:02:42.7]} 14... Bd7 {[%clk 0:02:18.4]} 15. a3
{[%clk 0:02:41.6]} 15... Qc7 {[%clk 0:02:13]} 16. Bc3 {[%clk 0:02:37]} 16... Rc8
{[%clk 0:02:09.9]} 17. Kb1 {[%clk 0:02:32.4]} 17... Qb8 {[%clk 0:02:10.3]} 18.
Be5 {[%clk 0:02:30.9]} 18... Bxe5 {[%clk 0:02:06]} 19. Nxe5 {[%clk 0:02:31.6]}
19... O-O {[%clk 0:02:06.7]} 20. g4 {[%clk 0:02:31.4]} 20... Rc5 {[%clk
0:01:58]} 21. f4 {[%clk 0:02:30.6]} 21... Rfc8 {[%clk 0:01:54.8]} 22. h4 {[%clk
0:02:24.3]} 22... Be8 {[%clk 0:01:43.9]} 23. g5 {[%clk 0:02:24.1]} 23... Nd5
{[%clk 0:01:44.6]} 24. Qe4 {[%clk 0:02:00.6]} 24... Nxf4 {[%clk 0:01:44.8]} 25.
Qh7+ {[%clk 0:01:51.6]} 25... Kf8 {[%clk 0:01:44.8]} 26. Ng4 {[%clk 0:01:35.3]}
26... Ba4 {[%clk 0:01:01.1]} 27. gxh6 {[%clk 0:01:26.2]} 27... Nxd3 {[%clk
0:01:01.2]} 28. Qxg7+ {[%clk 0:01:21]} 28... Ke8 {[%clk 0:00:54.8]} 29. h7
{[%clk 0:01:06.1]} 29... Bxc2+ {[%clk 0:00:46]} 30. Ka1 {[%clk 0:01:05.6]} 30...
Kd7 {[%clk 0:00:40.9]} 31. Qxf7+ {[%clk 0:01:02.1]} 31... Kc6 {[%clk 0:00:41]}
32. Qxe6+ {[%clk 0:00:59.6]} 32... Kb5 {[%clk 0:00:41.6]} 33. Rxd3 {[%clk
0:00:56.1]} 33... Bxd3 {[%clk 0:00:41.9]} 34. Qb3+ {[%clk 0:00:54.4]} 34... Ka5
{[%clk 0:00:42.2]} 35. Qxd3 {[%clk 0:00:53.7]} 35... Rc1+ {[%clk 0:00:38.4]} 36.
Rxc1 {[%clk 0:00:53.1]} 36... Rxc1+ {[%clk 0:00:39.3]} 37. Ka2 {[%clk
0:00:53.4]} 37... Rc8 {[%clk 0:00:39.7]} 38. Qd5+ {[%clk 0:00:48.2]} 38... b5
{[%clk 0:00:38.1]} 39. Ne5 {[%clk 0:00:45.7]} 39... Qc7 {[%clk 0:00:30.5]} 40.
Nf7 {[%clk 0:00:36.3]} 40... Qf4 {[%clk 0:00:13.9]} 41. h8=Q {[%clk 0:00:29.4]}
41... Rxh8 {[%clk 0:00:14.6]} 42. Nxh8 {[%clk 0:00:30.2]} 42... Qxh4 {[%clk
0:00:15.5]} 43. Nf7 {[%clk 0:00:30.4]} 43... Qf6 {[%clk 0:00:13.1]} 44. Nd6
{[%clk 0:00:30.3]} 44... a6 {[%clk 0:00:13.6]} 45. Nc4+ {[%clk 0:00:29.5]} 1-0

[Event "*** Titled Tuesday Blitz"]
[Site "Chess.com"]
[Date "2021.02.09"]
[Round "5"]
[White "Jungle_Jaguar"]
[Black "rasmussvane"]
[Result "0-1"]
[WhiteElo "2650"]
[BlackElo "2893"]
[TimeControl "180+1"]
[EndTime "10:57:29 PST"]
[Termination "rasmussvane won by checkmate"]

1. b3 {[%clk 0:03:00.9]} 1... d5 {[%clk 0:02:59.7]} 2. Bb2 {[%clk 0:03:00.3]}
2... Bg4 {[%clk 0:03:00.1]} 3. f3 {[%clk 0:02:57.5]} 3... Bf5 {[%clk 0:02:56.9]}
4. g3 {[%clk 0:02:52]} 4... Nc6 {[%clk 0:02:53.9]} 5. Bg2 {[%clk 0:02:51]} 5...
e5 {[%clk 0:02:53.6]} 6. Nh3 {[%clk 0:02:46.3]} 6... Bc5 {[%clk 0:02:38.4]} 7.
Nf2 {[%clk 0:02:45.4]} 7... Qd7 {[%clk 0:02:32.4]} 8. e3 {[%clk 0:02:40]} 8...
O-O-O {[%clk 0:02:30.6]} 9. O-O {[%clk 0:02:38.7]} 9... h5 {[%clk 0:02:29.8]}
10. d4 {[%clk 0:02:32.9]} 10... Bb6 {[%clk 0:02:26.2]} 11. e4 {[%clk 0:02:16.3]}
11... dxe4 {[%clk 0:02:03.3]} 12. fxe4 {[%clk 0:02:14]} 12... Bg4 {[%clk
0:02:03.5]} 13. Nxg4 {[%clk 0:01:31.8]} 13... hxg4 {[%clk 0:02:04.4]} 14. Kh1
{[%clk 0:01:23]} 14... Nxd4 {[%clk 0:01:44.7]} 15. Nc3 {[%clk 0:01:16.4]} 15...
Nf6 {[%clk 0:01:43]} 16. a4 {[%clk 0:00:59.1]} 16... Rxh2+ {[%clk 0:00:59.2]}
17. Kxh2 {[%clk 0:00:58.1]} 17... Rh8+ {[%clk 0:00:59.8]} 18. Bh3 {[%clk
0:00:58.1]} 18... Rxh3+ {[%clk 0:01:00.2]} 19. Kg2 {[%clk 0:00:57.4]} 19... Nh5
{[%clk 0:00:56.5]} 20. Nd5 {[%clk 0:00:46.4]} 20... Rxg3+ {[%clk 0:00:55.9]} 21.
Kf2 {[%clk 0:00:32.4]} 21... Rf3+ {[%clk 0:00:18.8]} 22. Ke1 {[%clk 0:00:27.7]}
22... Ng3 {[%clk 0:00:18.3]} 23. Nxb6+ {[%clk 0:00:14.2]} 23... axb6 {[%clk
0:00:19.2]} 24. Rxf3 {[%clk 0:00:14.8]} 24... Nxf3+ {[%clk 0:00:19]} 25. Kf2
{[%clk 0:00:15]} 25... Nxe4+ {[%clk 0:00:19.2]} 26. Ke3 {[%clk 0:00:14.6]} 26...
Qf5 {[%clk 0:00:15.7]} 27. Qd5 {[%clk 0:00:07.1]} 27... Qf4+ {[%clk 0:00:12.6]}
28. Kd3 {[%clk 0:00:07.2]} 28... Qd2+ {[%clk 0:00:06.8]} 29. Kxe4 {[%clk
0:00:07.1]} 29... f5+ {[%clk 0:00:06.8]} 30. Kxf5 {[%clk 0:00:06.2]} 30... Qxd5
{[%clk 0:00:07]} 31. Kxg4 {[%clk 0:00:06.3]} 31... e4 {[%clk 0:00:07.3]} 32. Kf4
{[%clk 0:00:03.6]} 32... g5+ {[%clk 0:00:07.3]} 33. Ke3 {[%clk 0:00:03.9]} 33...
Qf5 {[%clk 0:00:07.3]} 34. Rf1 {[%clk 0:00:03.4]} 34... Qf4+ {[%clk 0:00:07.8]}
35. Ke2 {[%clk 0:00:03.7]} 35... Qd2# {[%clk 0:00:08.2]} 0-1

[Event "*** Titled Tuesday Blitz"]
[Site "Chess.com"]
[Date "2021.02.09"]
[Round "5"]
[White "ChelsieMonica"]
[Black "Grandmaster2B"]
[Result "0-1"]
[WhiteElo "2343"]
[BlackElo "2527"]
[TimeControl "180+1"]
[EndTime "10:57:30 PST"]
[Termination "Grandmaster2B won by resignation"]

1. e4 {[%clk 0:03:00.9]} 1... c5 {[%clk 0:03:00]} 2. Nf3 {[%clk 0:03:00.6]} 2...
d6 {[%clk 0:03:00.4]} 3. d4 {[%clk 0:02:59.2]} 3... cxd4 {[%clk 0:03:01.3]} 4.
Nxd4 {[%clk 0:03:00.1]} 4... Nf6 {[%clk 0:03:02]} 5. Nc3 {[%clk 0:03:00]} 5...
a6 {[%clk 0:03:02.4]} 6. Be3 {[%clk 0:02:57.8]} 6... e5 {[%clk 0:03:02.3]} 7.
Nb3 {[%clk 0:02:57.8]} 7... Be6 {[%clk 0:03:02.3]} 8. f4 {[%clk 0:02:55.5]} 8...
exf4 {[%clk 0:02:59.3]} 9. Bxf4 {[%clk 0:02:55]} 9... Nc6 {[%clk 0:03:00]} 10.
Qe2 {[%clk 0:02:53.4]} 10... Ne5 {[%clk 0:02:53.7]} 11. h3 {[%clk 0:02:52.7]}
11... Qc7 {[%clk 0:02:52.6]} 12. O-O-O {[%clk 0:02:46.6]} 12... Be7 {[%clk
0:02:52.4]} 13. g4 {[%clk 0:02:44.1]} 13... O-O {[%clk 0:02:46.9]} 14. g5 {[%clk
0:02:41.8]} 14... Nfd7 {[%clk 0:02:46.2]} 15. Qg2 {[%clk 0:02:37.3]} 15... Rac8
{[%clk 0:02:42.2]} 16. Rh2 {[%clk 0:02:34.4]} 16... b5 {[%clk 0:02:37.4]} 17.
Kb1 {[%clk 0:02:26.9]} 17... Qb6 {[%clk 0:02:35.8]} 18. h4 {[%clk 0:02:22.4]}
18... Rxc3 {[%clk 0:02:00.3]} 19. bxc3 {[%clk 0:02:19.9]} 19... Rc8 {[%clk
0:02:00.7]} 20. h5 {[%clk 0:02:13]} 20... Qc7 {[%clk 0:01:47]} 21. Bd2 {[%clk
0:01:53.6]} 21... Nb6 {[%clk 0:01:42.2]} 22. g6 {[%clk 0:01:49.2]} 22... Nbc4
{[%clk 0:01:35]} 23. Bc1 {[%clk 0:01:46.9]} 23... a5 {[%clk 0:01:30.3]} 24.
gxh7+ {[%clk 0:01:37.1]} 24... Kh8 {[%clk 0:01:26.2]} 25. h6 {[%clk 0:01:34.7]}
25... g6 {[%clk 0:01:23.9]} 26. Nd4 {[%clk 0:01:09.1]} 26... b4 {[%clk
0:01:02.3]} 27. Nxe6 {[%clk 0:01:07.2]} 27... fxe6 {[%clk 0:01:03.2]} 28. cxb4
{[%clk 0:00:46.1]} 28... Qb7 {[%clk 0:01:02.5]} 29. Rh3 {[%clk 0:00:40.8]} 29...
axb4 {[%clk 0:00:49.3]} 30. Rb3 {[%clk 0:00:39.3]} 30... Na5 {[%clk 0:00:43.9]}
31. Bg5 {[%clk 0:00:37.9]} 31... Nxb3 {[%clk 0:00:37]} 32. cxb3 {[%clk
0:00:35.3]} 32... Bxg5 {[%clk 0:00:30.5]} 33. Qxg5 {[%clk 0:00:35.3]} 33...
Qxe4+ {[%clk 0:00:31]} 34. Bd3 {[%clk 0:00:35.3]} 34... Qf3 {[%clk 0:00:23.2]}
35. Be2 {[%clk 0:00:31.2]} 35... Qe4+ {[%clk 0:00:10.4]} 36. Ka1 {[%clk
0:00:31.5]} 36... Rf8 {[%clk 0:00:04.5]} 37. Qe7 {[%clk 0:00:29.8]} 37... Rf7
{[%clk 0:00:04.4]} 38. Qxe6 {[%clk 0:00:27.2]} 38... Qxe2 {[%clk 0:00:04]} 39.
Qxd6 {[%clk 0:00:23.7]} 39... Rf1 {[%clk 0:00:01.9]} 40. Rxf1 {[%clk 0:00:16.7]}
40... Qxf1+ {[%clk 0:00:02.8]} 41. Kb2 {[%clk 0:00:17.6]} 41... Nd3+ {[%clk
0:00:02.8]} 42. Kc2 {[%clk 0:00:18]} 42... Qc1+ {[%clk 0:00:03.2]} 43. Kxd3
{[%clk 0:00:18.5]} 43... Qd1+ {[%clk 0:00:03.9]} 0-1